bitfinex-derivatives/quotes_ETHF0:USTF0_20250906
["timestamp","ask_amount","ask_price","bid_price","bid_amount"]
[1757156165834,0.60273316,4302.6,4302.5,0.8272]
[1757156169827,0.99853316,4302.6,4302.5,0.8272]
[1757156170027,1.14243316,4302.6,4302.5,0.4241]
[1757156173540,1.14243316,4302.6,4302.5,0.6189]
[1757156182346,0.5408,4302.4,4301.5,0.4186]
[1757156182547,0.88305564,4301.6,4300.8,3.2078]
[1757156182752,0.3965,4301.1,4301.0,0.3348]
[1757156183050,0.99923316,4301.1,4301.0,0.3348]
[1757156184351,0.99923316,4301.1,4301.0,0.536]
[1757156184652,0.99923316,4301.1,4301.0,0.8364]
[1757156187251,1.21343316,4301.1,4301.0,0.8364]
[1757156187655,0.99923316,4301.1,4301.0,0.8364]
[1757156188741,1.21343316,4301.1,4301.0,0.8364]
[1757156189045,0.99923316,4301.1,4301.0,0.8364]
[1757156190148,1.21343316,4301.1,4301.0,0.8364]
[1757156190353,0.6107,4301.1,4301.0,0.6352]
[1757156192357,0.3965,4301.1,4301.0,0.6352]
[1757156192856,0.3965,4301.1,4301.0,0.8364]
[1757156200459,0.6107,4301.1,4301.0,0.8364]
[1757156201168,0.3965,4301.1,4301.0,0.8364]
[1757156202471,0.233,4301.5,4301.4,0.7112]
[1757156202672,1.04298563,4301.5,4301.4,0.7112]
[1757156204769,1.23638563,4301.5,4301.4,0.7112]
[1757156212382,1.24114254,4301.5,4301.4,0.7112]
[1757156213876,1.00814254,4301.5,4301.4,0.7112]
[1757156214178,1.24114254,4301.5,4301.4,0.7112]
[1757156216587,1.24384254,4301.5,4301.4,0.7112]
[1757156219192,1.45794254,4301.5,4301.4,0.7112]
[1757156222295,1.24384254,4301.5,4301.4,0.7112]
[1757156223092,1.04124254,4301.5,4301.4,0.7112]
[1757156223397,1.24384254,4301.5,4301.4,0.7112]
[1757156224900,1.45794254,4301.5,4301.4,0.7112]
[1757156233008,1.45785589,4301.5,4301.4,0.7112]
[1757156237407,1.24375589,4301.5,4301.4,0.7112]
[1757156240311,1.25135589,4301.5,4301.4,0.7112]
[1757156253824,1.46585589,4301.5,4301.4,0.7112]
[1757156256123,0.61155589,4301.5,4301.4,0.7112]
[1757156256431,0.61155589,4301.5,4301.4,8.15148]
[1757156257719,0.61155589,4301.5,4301.4,7.919]
[1757156259425,0.61155589,4301.5,4301.4,3.919]
[1757156268731,0.61155589,4301.5,4301.4,4.152]
[1757156286944,1.25244881,4302.6,4302.1,0.4117]
[1757156287147,0.1933,4302.6,4302.5,0.8534]
[1757156287347,0.6848,4302.6,4302.5,0.8534]
[1757156287755,0.1933,4302.6,4302.5,0.8534]
[1757156287958,0.1933,4302.7,4302.6,0.7248]
[1757156288151,0.4868,4302.7,4302.6,0.7248]
[1757156288555,0.6848,4302.7,4302.6,0.7248]
[1757156293163,0.1933,4302.7,4302.6,0.7248]
[1757156293362,3.2078,4303.0,4302.9,0.4117]
[1757156293564,3.2078,4303.0,4302.9,0.7248]
[1757156294262,3.4011,4303.0,4302.9,0.7248]
[1757156296662,3.6946,4303.0,4302.9,0.7248]
[1757156298862,4.00774383,4303.0,4302.9,0.7248]
[1757156299368,4.30264383,4303.0,4302.9,0.7248]
[1757156299667,4.51564383,4303.0,4302.9,0.7248]
[1757156304469,4.51564383,4303.0,4302.9,0.5118]
[1757156304866,4.64134383,4303.0,4302.9,0.5118]
[1757156307471,4.64134383,4303.0,4302.7,0.1408]
[1757156307669,0.7136,4302.8,4302.7,0.6363]
[1757156307869,1.32024383,4302.8,4302.7,0.6363]
[1757156308066,1.32024383,4302.8,4302.7,0.4955]
[1757156309264,1.32024383,4302.8,4302.7,0.7086]
[1757156313579,1.02534383,4302.8,4302.7,0.7086]
[1757156313775,0.60664383,4302.8,4302.7,0.7086]
[1757156315582,0.81234383,4302.8,4302.7,0.7086]
[1757156315782,1.10724383,4302.8,4302.7,0.7086]
[1757156317184,1.32024383,4302.8,4302.7,0.7086]
[1757156321082,1.32024383,4302.8,4302.7,0.4955]
[1757156322782,0.7136,4302.7,4302.6,1.08051602]
[1757156322977,1.32024383,4302.7,4302.6,1.08051602]
[1757156323383,1.32024383,4302.7,4302.6,1.37201602]
[1757156323588,1.32024383,4302.7,4302.6,0.233]
[1757156324291,1.32024383,4302.7,4302.6,0.5245]
[1757156326589,1.32024383,4302.7,4302.6,0.7285]
[1757156334190,1.32024383,4302.7,4302.6,0.4955]
[1757156334384,0.8595,4302.5,4302.4,3.3469]
[1757156334590,1.46614383,4302.5,4302.4,0.1391]
[1757156334892,1.46614383,4302.5,4302.3,0.233]
[1757156335092,1.34394383,4302.4,4302.3,0.233]
[1757156335589,0.3204,4302.3,4302.2,5.687]
[1757156335793,1.34394383,4302.3,4302.2,5.687]
[1757156337193,1.34394383,4302.3,4302.2,5.8977]
[1757156338698,1.34394383,4302.3,4302.2,6.1307]
[1757156339998,1.34394383,4302.3,4302.2,0.7597]
[1757156341588,0.60664383,4302.3,4302.2,0.9618]
[1757156341788,0.60664383,4302.3,4302.2,3.8536]
[1757156341997,0.7373,4303.0,4302.9,0.7288]
[1757156342203,1.34473357,4303.0,4302.9,0.7288]
[1757156344307,0.81513357,4303.0,4302.9,0.7288]
[1757156344508,0.60743357,4303.0,4302.9,0.7288]
[1757156345907,1.13553357,4303.0,4302.9,0.7288]
[1757156346103,1.13553357,4303.0,4302.9,1.0138828]
[1757156346406,0.81513357,4303.0,4302.9,1.0138828]
[1757156348202,0.60743357,4303.0,4302.9,1.0138828]
[1757156351711,0.81513357,4303.0,4302.9,1.0138828]
[1757156351911,1.13553357,4303.0,4302.9,1.0138828]
[1757156352407,0.81513357,4303.0,4302.9,1.0138828]
[1757156355711,1.13553357,4303.0,4302.9,1.0138828]
[1757156356414,0.60743357,4303.0,4302.9,1.0138828]
[1757156359815,0.80653357,4303.0,4302.9,1.0138828]
[1757156363017,0.60743357,4303.0,4302.9,1.0138828]
[1757156364519,0.80653357,4303.0,4302.9,1.0138828]
[1757156364918,0.80653357,4303.0,4302.9,1.01370615]
[1757156367016,1.09843357,4303.0,4302.9,1.01370615]
[1757156367524,0.80653357,4303.0,4302.9,1.01370615]
[1757156368326,1.09843357,4303.0,4302.9,1.01370615]
[1757156368518,1.09843357,4303.0,4302.9,1.24688393]
[1757156368719,1.29333357,4303.0,4302.9,1.24688393]
[1757156369823,0.80653357,4303.0,4302.9,1.24688393]
[1757156370428,0.80653357,4303.0,4302.9,2.24997776]
[1757156371730,1.09843357,4303.0,4302.9,2.24997776]
[1757156374333,1.09843357,4303.0,4302.9,1.24688393]
[1757156375332,1.09843357,4303.0,4302.9,0.9618]
[1757156382139,1.29333357,4303.0,4302.9,0.9618]
[1757156383539,1.29333357,4303.0,4302.9,1.80865568]
[1757156391450,1.29333357,4303.0,4302.9,1.57565568]
[1757156391642,1.29333357,4303.0,4302.9,1.80865568]
[1757156393647,1.29333357,4303.0,4302.9,1.57565568]
[1757156394146,1.29333357,4303.0,4302.9,1.80865568]
[1757156401339,0.60743357,4303.0,4302.9,1.80865568]
[1757156404752,0.60743357,4303.0,4302.9,2.04105568]
[1757156405045,0.5297,4303.6,4303.5,0.831]
[1757156405249,0.5297,4303.6,4303.5,1.064]
[1757156405741,1.13818178,4303.6,4303.5,1.064]
[1757156405943,1.13818178,4303.6,4303.5,1.91085568]
[1757156409551,0.864,4303.5,4303.4,0.233]
[1757156409752,1.47248178,4303.5,4303.4,0.233]
[1757156411352,1.47248178,4303.5,4303.3,0.1304]
[1757156411551,0.4219,4303.1,4303.0,0.00348695]
[1757156411748,1.35168178,4303.1,4303.0,0.00348695]
[1757156412764,4.55948178,4303.1,4303.0,0.00348695]
[1757156414853,0.3213,4301.9,4301.7,3.2078]
[1757156415054,1.35265707,4301.8,4301.7,3.2078]
[1757156415260,1.35265707,4301.8,4301.7,3.9112]
[1757156415465,1.03135707,4301.8,4301.7,3.9112]
[1757156415958,1.35265707,4301.8,4301.7,3.9112]
[1757156416463,1.35265707,4301.8,4301.7,3.7148]
[1757156419060,1.35265707,4301.8,4301.7,3.9112]
[1757156419261,0.7432,4301.8,4301.7,3.9112]
[1757156420669,0.7432,4301.8,4301.7,4.1442]
[1757156422358,0.3083,4302.5,4302.4,0.1996]
[1757156422563,1.11180418,4302.5,4302.4,1.56975568]
[1757156422859,1.11180418,4302.5,4302.4,0.7229]
[1757156423055,1.31740418,4302.5,4302.4,0.7229]
[1757156425866,0.7082,4302.5,4302.4,0.7229]
[1757156426261,1.31735673,4302.5,4302.4,0.7229]
[1757156426561,0.7082,4302.5,4302.4,0.7229]
[1757156427176,1.31735636,4302.5,4302.4,0.7229]
[1757156427470,0.7082,4302.5,4302.4,0.7229]
[1757156427667,4.33512504,4302.5,4301.8,0.313]
[1757156427857,4.33512504,4302.5,4301.8,0.7456]
[1757156427858,0.7082,4301.9,4301.8,0.7456]
[1757156428062,0.7082,4301.9,4301.8,0.313]
[1757156428365,0.1183,4302.0,4301.7,3.2078]
[1757156428366,0.7082,4301.8,4301.7,3.5208]
[1757156428859,0.7082,4301.8,4301.7,3.2078]
[1757156429171,1.31739575,4301.8,4301.2,0.313]
[1757156429360,3.3261,4302.0,4301.2,0.7229]
[1757156429361,0.7082,4301.3,4301.2,0.7229]
[1757156430359,0.7082,4301.3,4301.2,0.9559]
[1757156430560,0.7082,4301.3,4301.2,0.7229]
[1757156430760,1.31727057,4301.3,4301.2,0.313]
[1757156431163,0.7082,4301.3,4301.2,0.313]
[1757156431362,0.7082,4301.3,4301.2,0.5126]
[1757156433668,0.7082,4301.3,4301.1,3.2078]
[1757156433669,0.7082,4301.2,4301.1,3.2078]
[1757156434267,0.7082,4301.2,4301.1,3.5208]
[1757156435971,0.7082,4301.2,4301.1,3.7204]
[1757156438872,1.31703523,4301.2,4301.1,3.7204]
[1757156439073,1.31703523,4301.2,4300.6,4.05465568]
[1757156439374,0.7082,4300.8,4300.7,0.6429]
[1757156439768,0.7082,4300.8,4300.7,0.9559]
[1757156440170,0.7082,4300.8,4300.7,0.7229]
[1757156440973,0.7082,4300.8,4300.7,0.5126]
[1757156441271,0.7082,4300.8,4300.7,0.7229]
[1757156441475,1.3174934,4300.8,4300.7,0.7229]
[1757156443665,0.7082,4300.2,4300.1,0.6429]
[1757156443868,1.3174934,4300.2,4300.1,0.6429]
[1757156444373,1.3174934,4300.2,4300.1,0.9559]
[1757156444764,1.3174934,4300.2,4300.1,0.7229]
[1757156444964,0.8035934,4300.2,4300.1,0.7229]
[1757156445173,0.6118934,4300.2,4300.1,0.7229]
[1757156445478,0.1943,4300.2,4300.1,0.7229]
[1757156445676,3.2078,4300.4,4300.1,0.4099]
[1757156445874,0.1943,4300.3,4300.2,0.313]
[1757156446074,0.1943,4300.3,4300.2,0.7229]
[1757156446975,0.3999,4300.3,4300.2,0.7229]
[1757156447276,0.7082,4300.3,4300.2,0.7229]
[1757156450873,0.3999,4300.3,4300.2,0.7229]
[1757156451179,0.233,4300.5,4300.3,0.4103]
[1757156451380,0.233,4300.5,4300.4,0.7089]
[1757156453378,3.6214,4301.0,4300.9,0.7089]
[1757156453682,4.1467,4301.0,4300.9,0.7089]
[1757156457284,4.75500602,4301.0,4300.9,0.7089]
[1757156460000,4.46270602,4301.0,4300.9,0.7089]
[1757156460394,4.75500602,4301.0,4300.9,0.7089]
[1757156461188,4.75500602,4301.0,4300.9,0.5027]
[1757156462103,4.75500602,4301.0,4300.9,0.2986]
[1757156462298,4.75500602,4301.0,4300.6,0.2986]
[1757156462601,0.7059,4300.6,4300.5,0.3315]
[1757156462799,1.31420602,4300.6,4300.5,0.3315]
[1757156462999,1.31420602,4300.6,4300.5,0.6301]
[1757156463390,1.31420602,4300.6,4300.5,0.8363]
[1757156463796,1.02190602,4300.6,4300.5,0.8363]
[1757156464598,1.31420602,4300.6,4300.5,0.8363]
[1757156465597,1.02190602,4300.6,4300.5,0.8363]
[1757156470498,1.31420602,4300.6,4300.5,0.8363]
[1757156473711,1.02190602,4300.6,4300.5,0.8363]
[1757156473911,0.60830602,4300.6,4300.1,3.5064]
[1757156474107,0.2106,4300.2,4300.1,3.9167]
[1757156474509,0.81890602,4300.2,4300.1,3.9167]
[1757156475012,1.02190602,4300.2,4300.1,3.9167]
[1757156475709,1.31420602,4300.2,4300.1,3.5064]
[1757156475915,1.31420602,4300.2,4300.1,3.2078]
[1757156476812,1.31420602,4300.2,4300.1,3.5064]
[1757156477010,1.31420602,4300.2,4300.1,3.2078]
[1757156478413,4.22970602,4300.2,4299.6,0.2986]
[1757156478623,0.4074,4299.6,4299.5,3.7649]
[1757156478818,1.01570602,4299.6,4299.5,3.9675]
[1757156479019,1.01570602,4299.6,4298.9,32.095]
[1757156479020,1.31530602,4299.6,4298.9,3.2078]
[1757156479214,0.4008,4299.2,4299.1,0.5029]
[1757156479418,1.30870602,4299.2,4299.1,0.5029]
[1757156479606,4.51650602,4299.2,4299.1,0.2986]
[1757156479811,1.30870602,4299.2,4299.1,0.5029]
[1757156480010,1.30870602,4299.2,4298.2,4.21207101]
[1757156480011,1.30870602,4299.2,4298.2,3.2078]
[1757156480217,0.60830602,4299.1,4298.6,0.4069]
[1757156480416,1.30870602,4299.1,4299.0,0.8334]
[1757156480714,1.30870602,4299.1,4298.5,0.3604]
[1757156480715,0.2996,4299.0,4298.5,0.1274]
[1757156480905,0.204,4298.6,4298.5,0.5343]
[1757156481110,0.4008,4298.6,4298.5,0.1274]
[1757156481313,0.4008,4298.6,4298.5,0.8329]
[1757156482113,0.204,4298.6,4298.5,0.8329]
[1757156482314,0.2996,4298.9,4298.6,0.2986]
[1757156482514,0.204,4298.9,4298.8,0.7055]
[1757156482811,3.2078,4299.2,4299.1,0.2986]
[1757156483017,0.62144198,4299.2,4299.1,0.7055]
[1757156484215,0.00348695,4299.3,4299.1,0.7055]
[1757156484419,0.00348695,4299.3,4299.2,0.7055]
[1757156484619,0.20748695,4299.3,4299.2,0.7055]
[1757156484827,0.8278078,4299.3,4299.2,0.7055]
[1757156486413,1.3242078,4299.3,4299.2,0.7055]
[1757156486613,1.3242078,4299.3,4299.2,0.2986]
[1757156488324,1.3242078,4299.3,4299.2,0.5029]
[1757156488825,1.3242078,4299.3,4299.2,0.7055]
[1757156489423,1.0246078,4299.3,4299.2,0.7055]
[1757156489823,1.3242078,4299.3,4299.2,0.7055]
[1757156490121,1.32380437,4299.3,4299.2,0.7055]
[1757156492123,0.62340437,4299.3,4299.2,0.7055]
[1757156492521,0.00348695,4299.3,4299.2,0.7055]
[1757156495127,0.82743597,4299.3,4299.2,0.7055]
[1757156496333,1.02423597,4299.3,4299.2,0.7055]
[1757156499131,1.32383597,4299.3,4299.2,0.7055]
[1757156499334,1.02423597,4299.3,4299.2,0.7055]
[1757156500132,1.32383597,4299.3,4299.2,0.7055]
[1757156504836,1.32383597,4299.3,4299.2,0.5029]
[1757156505235,1.32383597,4299.3,4299.2,0.7055]
[1757156506335,1.02423597,4299.3,4299.2,0.7055]
[1757156507839,1.32383597,4299.3,4299.2,0.7055]
[1757156513143,1.02423597,4299.3,4299.2,0.7055]
[1757156520462,1.02615216,4299.3,4299.2,0.7055]
[1757156522552,0.82935216,4299.3,4299.2,0.7055]
[1757156526866,1.02935216,4299.3,4299.2,0.7055]
[1757156527065,1.34675216,4299.3,4299.2,0.7055]
[1757156528159,1.34675216,4299.3,4299.2,0.2986]
[1757156528963,1.34675216,4299.3,4299.2,0.5127]
[1757156529164,0.82935216,4299.3,4299.2,0.7092]
[1757156529364,1.34675216,4299.3,4299.2,0.7092]
[1757156533671,1.34675216,4299.3,4299.1,0.3076]
[1757156533868,1.33806521,4299.2,4299.1,0.3076]
[1757156534060,1.33806521,4299.2,4299.1,0.5217]
[1757156537769,1.33806521,4299.2,4299.1,0.3076]
[1757156538774,1.33806521,4299.2,4299.1,0.5217]
[1757156541684,1.02066521,4299.2,4299.1,0.7334]
[1757156542175,1.31746521,4299.2,4299.1,0.7334]
[1757156548883,1.31746521,4299.2,4299.1,0.3076]
[1757156549884,1.31746521,4299.2,4299.1,0.5136]
[1757156554686,1.31746521,4299.2,4298.9,3.2078]
[1757156554875,1.31746521,4299.2,4298.2,0.2905]
[1757156554876,0.5267,4299.0,4298.2,0.2905]
[1757156555075,0.4088,4298.4,4298.3,3.6468]
[1757156555274,0.7056,4298.4,4298.3,3.4138]
[1757156555475,1.32746521,4298.4,4298.3,3.6468]
[1757156555676,1.32746521,4298.4,4298.3,3.9373]
[1757156556985,1.32746521,4298.4,4298.3,3.7043]
[1757156558783,1.32746521,4298.4,4298.3,3.916]
[1757156558990,1.32746521,4298.4,4298.3,0.7082]
[1757156567701,1.03066521,4298.4,4298.3,0.7082]
[1757156574711,1.32266521,4298.4,4298.3,0.4995]
[1757156576812,1.32266521,4298.4,4298.3,0.7099]
[1757156577011,1.03066521,4298.4,4298.3,0.7099]
[1757156578815,1.32266521,4298.4,4298.3,0.7099]
[1757156582119,0.62186521,4298.4,4298.3,0.7099]
[1757156583918,0.62186521,4298.4,4298.3,1.94777094]
[1757156585721,0.62186521,4298.4,4298.3,1.71512095]
[1757156588022,0.62186521,4298.4,4298.3,0.7099]
[1757156589922,0.62186521,4298.4,4298.3,0.9429]
[1757156596423,0.82646521,4298.4,4298.3,0.9429]
[1757156596627,1.02856521,4298.4,4298.3,0.9429]
[1757156596827,1.32056521,4298.4,4298.3,0.9429]
[1757156598927,1.32056521,4298.4,4298.3,0.2905]
[1757156599121,1.02856521,4298.4,4298.2,0.5544]
[1757156599325,1.33976521,4298.3,4298.2,0.5544]
[1757156599530,1.03936521,4298.3,4297.7,0.3214]
[1757156599726,0.92226521,4298.2,4298.1,0.3214]
[1757156599927,1.33976521,4298.2,4298.1,0.3214]
[1757156602527,1.33976521,4298.2,4298.1,0.5361]
[1757156603633,1.33976521,4298.2,4298.1,0.734]
[1757156603836,0.62186521,4298.2,4298.1,0.734]
[1757156604032,0.62186521,4298.4,4298.1,0.4126]
[1757156604233,0.62186521,4298.4,4298.2,0.3214]
[1757156604434,0.83596521,4298.4,4298.3,0.4126]
[1757156604735,0.83596521,4298.4,4298.3,0.734]
[1757156605336,1.33976521,4298.4,4298.3,0.734]
[1757156606333,1.33976521,4298.4,4298.3,0.5361]
[1757156608230,1.33976521,4298.4,4298.1,0.5544]
[1757156608430,0.7179,4298.2,4298.1,0.5544]
[1757156608737,1.33976521,4298.2,4298.1,0.7691]
[1757156609829,1.33976521,4298.2,4298.1,0.5361]
[1757156610729,0.62186521,4298.2,4298.1,0.734]
[1757156610935,0.2141,4298.3,4298.2,0.734]
[1757156611133,1.3463791,4298.3,4298.2,0.734]
[1757156613343,0.6284791,4298.3,4298.2,0.734]
[1757156614239,0.8425791,4298.3,4298.2,0.734]
[1757156614438,0.6284791,4298.3,4298.2,0.734]
[1757156615840,0.6284791,4298.3,4298.2,6.105]
[1757156616642,0.4471,4298.9,4298.8,0.4126]
[1757156616841,0.84250812,4298.9,4298.8,0.734]
[1757156617044,1.34630812,4298.9,4298.8,0.734]
[1757156618955,1.34629105,4298.9,4298.8,0.734]
[1757156624455,1.04589105,4298.9,4298.8,0.734]
[1757156624754,1.34629105,4298.9,4298.8,0.734]
[1757156625552,1.04589105,4298.9,4298.8,0.734]
[1757156626252,1.34629105,4298.9,4298.8,0.734]
[1757156626651,1.04589105,4298.9,4298.8,0.734]
[1757156628256,0.62839105,4298.9,4298.8,0.734]
[1757156629061,0.82189105,4298.9,4298.8,0.734]
[1757156631560,1.31269105,4298.9,4298.8,0.734]
[1757156634667,1.01659105,4298.9,4298.8,0.734]
[1757156639869,1.31269105,4298.9,4298.8,0.734]
[1757156640055,1.01659105,4298.9,4298.8,0.734]
[1757156640360,0.62839105,4298.9,4298.8,0.734]
[1757156641161,0.00348695,4299.3,4298.8,1.58257129]
[1757156641372,0.81746096,4299.2,4299.1,0.7202]
[1757156641667,0.81746096,4299.2,4299.1,0.9532]
[1757156643069,1.01216096,4299.2,4299.1,0.9532]
[1757156643466,2.15683225,4299.2,4299.1,0.3009]
[1757156644172,2.15683225,4299.2,4298.6,0.3009]
[1757156644371,3.8921,4299.0,4298.9,0.233]
[1757156644568,4.61846096,4299.0,4298.6,0.3009]
[1757156644770,1.53287129,4298.7,4298.6,0.5339]
[1757156644968,2.15683225,4298.7,4298.6,0.3009]
[1757156645165,2.15683225,4298.7,4298.5,0.233]
[1757156645469,1.30826096,4298.6,4298.5,0.5339]
[1757156646073,1.30826096,4298.6,4298.5,0.7457]
[1757156647974,1.30826096,4298.6,4298.5,0.3009]
[1757156648375,1.30826096,4298.6,4298.3,0.233]
[1757156648568,0.6843,4298.4,4298.3,0.5339]
[1757156648862,1.30826096,4298.4,4298.3,0.5339]
[1757156649073,1.01216096,4298.4,4298.1,3.2078]
[1757156649374,0.6843,4298.2,4298.1,0.5339]
[1757156649569,1.30826096,4298.2,4298.1,0.5339]
[1757156649770,1.30826096,4298.2,4298.1,0.7457]
[1757156650867,1.30826096,4298.2,4298.1,0.5127]
[1757156651072,1.30826096,4298.2,4298.1,0.7457]
[1757156662480,1.30826096,4298.2,4298.1,0.958]
[1757156662681,1.01216096,4298.2,4298.1,0.958]
[1757156664789,1.31306096,4298.2,4298.1,0.958]
[1757156668890,1.01216096,4298.2,4298.1,0.958]
[1757156669085,0.81746096,4298.2,4298.1,0.958]
[1757156669286,0.62396096,4298.2,4298.1,0.958]
[1757156671486,0.81896096,4298.2,4298.1,0.958]
[1757156680592,0.81896096,4298.2,4298.1,0.725]
[1757156680896,0.81896096,4298.2,4298.1,0.958]
[1757156685599,1.33436096,4298.2,4298.1,0.958]
[1757156687801,1.33436096,4298.2,4298.1,0.725]
[1757156688001,1.33436096,4298.2,4298.1,0.5339]
[1757156688404,1.33436096,4298.2,4298.1,0.7289]
[1757156691004,1.33436096,4298.2,4298.1,0.4959]
[1757156691200,0.4019,4297.9,4297.8,0.3088]
[1757156691512,5.54625058,4297.9,4297.6,0.3088]
[1757156691803,0.7092,4297.7,4297.6,0.3088]
[1757156692005,1.33316096,4297.7,4297.6,0.3088]
[1757156693610,1.33316096,4297.7,4297.6,0.5062]
[1757156696305,1.33316096,4297.7,4297.6,0.7132]
[1757156696511,1.33316096,4297.7,4297.6,0.5062]
[1757156700814,0.62396096,4297.7,4297.6,0.7132]
[1757156701304,0.82636096,4297.7,4297.6,0.7132]
[1757156702503,0.62396096,4297.7,4297.6,1.71848962]
[1757156702712,1.33316096,4297.7,4297.6,0.7132]
[1757156711324,0.62396096,4297.7,4297.6,0.7132]
[1757156713222,0.82636096,4297.7,4297.6,0.7132]
[1757156715627,0.62396096,4297.7,4297.6,0.7132]
[1757156716024,0.82636096,4297.7,4297.6,0.7132]
[1757156722830,0.62396096,4297.7,4297.6,0.7132]
[1757156723427,0.62396096,4297.7,4297.6,1.71848962]
[1757156725530,0.62396096,4297.7,4297.6,7.08948962]
[1757156729632,0.62396096,4297.7,4297.6,7.32248962]
[1757156734841,0.62396096,4297.7,4297.6,6.3172]
[1757156741146,1.32396096,4297.7,4297.6,6.0842]
[1757156741444,1.32396096,4297.7,4297.6,6.3172]
[1757156741640,1.32396096,4297.7,4297.6,6.0842]
[1757156741848,1.32396096,4297.7,4297.6,6.1102]
[1757156746050,1.32396096,4297.7,4297.6,6.3096]
[1757156746457,1.32396096,4297.7,4297.6,0.9386]
[1757156760857,1.32396096,4297.7,4297.6,0.7392]
[1757156761156,1.32396096,4297.7,4297.6,0.3088]
[1757156761357,0.1977,4297.2,4297.1,5.7779]
[1757156761561,0.82166096,4297.2,4297.1,5.7779]
[1757156761958,0.82166096,4297.2,4297.1,6.0713]
[1757156762453,0.62396096,4297.2,4297.1,6.0713]
[1757156764361,0.62396096,4297.2,4297.1,0.7003]
[1757156776475,0.82166096,4297.2,4297.1,0.7003]
[1757156784079,0.62396096,4297.2,4297.1,0.7003]
[1757156784379,0.83426096,4297.2,4297.1,0.7003]
[1757156789783,3.2078,4297.8,4297.5,0.122]
[1757156789988,3.2078,4297.8,4297.7,1.5550209]
[1757156791778,3.2078,4298.4,4297.7,1.5550209]
[1757156791982,3.2078,4299.0,4298.5,0.122]
[1757156792285,3.9172,4299.0,4298.9,0.7059]
[1757156793287,3.9172,4299.0,4298.9,0.5101]
[1757156794589,3.9172,4299.0,4298.9,0.3134]
[1757156796689,4.7663209,4299.0,4298.9,0.3134]
[1757156799196,8.7051309,4299.0,4298.1,3.2078]
[1757156799389,1.5585209,4298.2,4298.1,0.3134]
[1757156800092,4.7663209,4298.2,4297.7,0.233]
[1757156800307,4.7663209,4298.2,4297.8,0.3134]
[1757156800597,4.7663209,4298.2,4297.7,0.233]
[1757156802600,4.7663209,4298.2,4297.8,0.3134]
[1757156802897,0.4156,4298.1,4298.0,0.8279]
[1757156804592,0.2938,4298.4,4298.0,0.5145]
[1757156804798,0.2938,4298.6,4298.5,0.1967]
[1757156805003,1.31312221,4298.6,4298.5,0.5101]
[1757156806697,0.81402221,4298.6,4298.5,0.8279]
[1757156807292,1.31312221,4298.6,4298.5,0.8279]
[1757156807894,1.01932221,4298.6,4298.5,0.8279]
[1757156808796,1.32442221,4298.6,4298.5,0.8279]
[1757156808998,0.7207,4298.6,4298.5,0.8279]
[1757156809398,0.4156,4298.6,4298.5,0.8279]
[1757156810200,0.2103,4298.6,4298.5,0.8279]
[1757156811706,3.2078,4298.8,4298.6,0.3069]
[1757156811905,0.60378031,4298.7,4298.6,0.7261]
[1757156812107,0.81758031,4298.7,4298.6,0.7261]
[1757156815016,0.30858695,4299.3,4298.6,0.7261]
[1757156815213,0.2138,4299.1,4299.0,0.539]
[1757156815425,0.81052636,4299.1,4299.0,0.539]
[1757156815627,0.81052636,4299.1,4299.0,0.8459]
[1757156820030,1.00642636,4299.1,4299.0,0.8459]
[1757156820233,1.31152636,4299.1,4299.0,0.8459]
[1757156822730,0.59672636,4299.1,4299.0,0.8459]
[1757156823128,0.59672636,4299.2,4299.0,0.8459]
[1757156823324,0.00348695,4299.3,4299.0,0.8459]
[1757156823325,0.59672636,4299.1,4299.0,0.8459]
[1757156823829,0.00348695,4299.3,4299.1,0.7261]
[1757156824027,0.59716794,4299.2,4299.1,0.7261]
[1757156826727,0.3051,4299.8,4299.3,0.3069]
[1757156826933,0.7148,4299.8,4299.7,0.5189]
[1757156827232,1.31168612,4299.8,4299.7,0.5189]
[1757156828234,1.31150987,4299.8,4299.7,0.5189]
[1757156840144,1.31150987,4299.8,4299.7,0.3069]
[1757156842642,1.31150987,4299.8,4299.7,0.5169]
[1757156846934,1.31150987,4299.8,4299.7,0.7171]
[1757156857055,0.84219784,4299.8,4299.7,0.7171]
[1757156866848,0.64629784,4299.8,4299.7,0.7171]
[1757156872261,0.59670987,4299.8,4299.7,1.72208777]
[1757156873555,0.59670987,4299.8,4299.7,1.56518605]
[1757156882365,3.2078,4299.9,4299.8,0.2997]
[1757156882569,3.80441401,4299.9,4299.8,0.701]
[1757156883573,3.80441401,4299.9,4299.8,0.934]
[1757156887576,0.59661401,4299.9,4299.8,0.934]
[1757156944527,0.59661401,4299.9,4299.8,0.701]
[1757156944730,0.59661401,4299.9,4299.8,0.934]
[1757156949326,3.80441401,4299.9,4299.6,5.371]
[1757156949625,1.25388715,4299.7,4298.6,0.2939]
[1757156949831,3.2078,4298.8,4298.2,0.2939]
[1757156950126,0.59661401,4298.7,4298.4,0.2939]
[1757156950425,0.59661401,4298.7,4298.6,0.2939]
[1757156951920,0.59661401,4298.7,4298.5,0.1256]
[1757156952123,4.59661401,4298.7,4298.1,0.203]
[1757156952318,0.59661401,4298.6,4298.1,0.203]
[1757156952535,3.2078,4298.8,4298.2,0.2939]
[1757156952536,1.60094696,4298.5,4298.2,0.2939]
[1757156952831,3.2078,4298.3,4298.2,0.2939]
[1757156953023,3.80441401,4298.3,4298.2,0.2939]
[1757156953223,4.03706401,4298.3,4298.2,0.2939]
[1757156953730,3.80441401,4298.3,4298.2,0.2939]
[1757156955931,4.03741401,4298.3,4298.2,0.2939]
[1757156958124,3.4408,4298.3,4298.2,0.2939]
[1757156958528,9.27984222,4298.3,4297.6,0.2939]
[1757156958722,3.2078,4297.7,4297.6,0.2939]
[1757156975149,3.81376906,4297.7,4297.6,0.2939]
[1757156976849,3.81414155,4297.7,4297.6,0.2939]
[1757156995668,4.66338096,4297.7,4297.6,0.2939]
[1757156996863,4.66338096,4297.7,4297.6,0.4962]
[1757156999864,4.05703941,4297.7,4297.6,0.4962]
[1757157000066,4.66585474,4297.7,4297.6,0.4962]
[1757157000766,4.66585474,4297.7,4297.6,0.6928]